[Event "*** MasterClass Titled Tuesday Blitz"]
[Site "Chess.com"]
[Date "2017.08.01"]
[Round "3"]
[White "jeaston1"]
[Black "KyronGriffith"]
[Result "1-0"]
[WhiteElo "2201"]
[BlackElo "2337"]
[TimeControl "180+2"]
[EndTime "13:42:32 PDT"]
[Termination "jeaston1 won by checkmate"]

1. d4 {[%clk 0:03:01.9]} 1... Nf6 {[%clk 0:03:00.9]} 2. c4 {[%clk 0:03:02.8]}
2... g6 {[%clk 0:03:02.3]} 3. Nc3 {[%clk 0:03:03.9]} 3... Bg7 {[%clk 0:03:03.9]}
4. e4 {[%clk 0:03:04.4]} 4... d6 {[%clk 0:03:05.4]} 5. f3 {[%clk 0:03:04.2]}
5... O-O {[%clk 0:03:06.4]} 6. Be3 {[%clk 0:03:04.6]} 6... c5 {[%clk 0:03:08]}
7. dxc5 {[%clk 0:03:05.8]} 7... dxc5 {[%clk 0:03:09.9]} 8. Qxd8 {[%clk
0:03:06.9]} 8... Rxd8 {[%clk 0:03:11.8]} 9. Bxc5 {[%clk 0:03:08]} 9... Nc6
{[%clk 0:03:13.1]} 10. Nge2 {[%clk 0:03:03.2]} 10... Nd7 {[%clk 0:03:13]} 11.
Ba3 {[%clk 0:03:03.6]} 11... Nde5 {[%clk 0:03:04.4]} 12. Nf4 {[%clk 0:03:03.2]}
12... b6 {[%clk 0:02:57.4]} 13. Be2 {[%clk 0:02:52.5]} 13... Ba6 {[%clk
0:02:56.8]} 14. Nfd5 {[%clk 0:02:51.5]} 14... Rac8 {[%clk 0:02:46.8]} 15. Nxe7+
{[%clk 0:02:46.4]} 15... Nxe7 {[%clk 0:02:47.6]} 16. Bxe7 {[%clk 0:02:47.8]}
16... Rd7 {[%clk 0:02:37.2]} 17. Nd5 {[%clk 0:02:44.3]} 17... f5 {[%clk
0:01:45.3]} 18. O-O {[%clk 0:02:16.2]} 18... Kf7 {[%clk 0:01:37]} 19. Bb4 {[%clk
0:01:37]} 19... Bxc4 {[%clk 0:01:23.3]} 20. Rac1 {[%clk 0:01:26.4]} 20... Bh6
{[%clk 0:00:59.7]} 21. Rc3 {[%clk 0:01:06.8]} 21... a5 {[%clk 0:00:50.5]} 22.
Ba3 {[%clk 0:01:01.1]} 22... Rc6 {[%clk 0:00:37.3]} 23. Bxc4 {[%clk 0:00:53.2]}
23... Rxc4 {[%clk 0:00:36.7]} 24. Nxb6 {[%clk 0:00:28.8]} 24... Rxc3 {[%clk
0:00:36.7]} 25. Nxd7 {[%clk 0:00:28.5]} 25... Nxf3+ {[%clk 0:00:11.7]} 26. gxf3
{[%clk 0:00:21.1]} 26... Rc2 {[%clk 0:00:13.1]} 27. Ne5+ {[%clk 0:00:20.8]}
27... Ke6 {[%clk 0:00:14.7]} 28. Nd3 {[%clk 0:00:20.9]} 28... Rd2 {[%clk
0:00:15.5]} 29. Nf2 {[%clk 0:00:20.8]} 29... Be3 {[%clk 0:00:15.5]} 30. b4
{[%clk 0:00:20.2]} 30... axb4 {[%clk 0:00:16.5]} 31. Bxb4 {[%clk 0:00:21]} 31...
Rxa2 {[%clk 0:00:18.1]} 32. exf5+ {[%clk 0:00:19.6]} 32... Kxf5 {[%clk 0:00:20]}
33. Be1 {[%clk 0:00:20.8]} 33... g5 {[%clk 0:00:21.1]} 34. Kh1 {[%clk
0:00:20.7]} 34... h5 {[%clk 0:00:21.6]} 35. Ne4 {[%clk 0:00:21.3]} 35... Bf4
{[%clk 0:00:22.4]} 36. Bg3 {[%clk 0:00:22.3]} 36... Be3 {[%clk 0:00:20.6]} 37.
Rd1 {[%clk 0:00:18.2]} 37... Ra5 {[%clk 0:00:19.4]} 38. Nc3 {[%clk 0:00:11.1]}
38... h4 {[%clk 0:00:20.5]} 39. Be1 {[%clk 0:00:10.6]} 39... Ra3 {[%clk
0:00:18.4]} 40. Ne4 {[%clk 0:00:11.3]} 40... Kf4 {[%clk 0:00:18.3]} 41. Bf2
{[%clk 0:00:12.5]} 41... Bxf2 {[%clk 0:00:19.1]} 42. Nxf2 {[%clk 0:00:13.5]}
42... Kxf3 {[%clk 0:00:21]} 43. Nh3 {[%clk 0:00:14.6]} 43... Kg4 {[%clk
0:00:21.5]} 44. Nf2+ {[%clk 0:00:16.2]} 44... Kf3 {[%clk 0:00:22.2]} 45. Nd3
{[%clk 0:00:17.5]} 45... g4 {[%clk 0:00:21.8]} 46. Ne5+ {[%clk 0:00:18]} 46...
Kf4 {[%clk 0:00:23.3]} 47. Re1 {[%clk 0:00:19.2]} 47... Ra2 {[%clk 0:00:22.9]}
48. Ng6+ {[%clk 0:00:20.3]} 48... Kg5 {[%clk 0:00:23.9]} 49. Ne5 {[%clk
0:00:21]} 49... Kf4 {[%clk 0:00:25.2]} 50. Nd3+ {[%clk 0:00:21.9]} 50... Kf3
{[%clk 0:00:25.1]} 51. Rg1 {[%clk 0:00:23.1]} 51... g3 {[%clk 0:00:24.7]} 52.
Ne1+ {[%clk 0:00:24.6]} 52... Kg4 {[%clk 0:00:24.4]} 53. Ng2 {[%clk 0:00:22.8]}
53... Re2 {[%clk 0:00:17.2]} 54. h3+ {[%clk 0:00:20.8]} 54... Kf3 {[%clk
0:00:15.9]} 55. Rf1+ {[%clk 0:00:21.4]} 55... Ke4 {[%clk 0:00:12.8]} 56. Rf4+
{[%clk 0:00:22.8]} 56... Ke5 {[%clk 0:00:14.2]} 57. Rxh4 {[%clk 0:00:23.5]}
57... Rf2 {[%clk 0:00:14.3]} 58. Ne3 {[%clk 0:00:18.4]} 58... Re2 {[%clk
0:00:13.4]} 59. Nc4+ {[%clk 0:00:17.8]} 59... Kf5 {[%clk 0:00:14.1]} 60. Kg1
{[%clk 0:00:19.4]} 60... Ra2 {[%clk 0:00:10.4]} 61. Rg4 {[%clk 0:00:20.7]} 61...
Ra1+ {[%clk 0:00:04.8]} 62. Kg2 {[%clk 0:00:21.6]} 62... Ra2+ {[%clk 0:00:04.7]}
63. Kxg3 {[%clk 0:00:22.9]} 63... Kf6 {[%clk 0:00:05.1]} 64. Ne3 {[%clk
0:00:23.4]} 64... Ra1 {[%clk 0:00:05]} 65. Ng2 {[%clk 0:00:23.5]} 65... Ra3+
{[%clk 0:00:05.8]} 66. Kh2 {[%clk 0:00:24.1]} 66... Ra8 {[%clk 0:00:07.7]} 67.
Rg3 {[%clk 0:00:25.6]} 67... Kf5 {[%clk 0:00:08.7]} 68. Rf3+ {[%clk 0:00:27]}
68... Kg5 {[%clk 0:00:09.9]} 69. Kg3 {[%clk 0:00:28.6]} 69... Ra4 {[%clk
0:00:10.5]} 70. h4+ {[%clk 0:00:29.8]} 70... Kh5 {[%clk 0:00:11]} 71. Nf4+
{[%clk 0:00:31.1]} 71... Kh6 {[%clk 0:00:12.2]} 72. Re3 {[%clk 0:00:32.8]} 72...
Ra1 {[%clk 0:00:11.2]} 73. Kg4 {[%clk 0:00:33.8]} 73... Rg1+ {[%clk 0:00:11.7]}
74. Rg3 {[%clk 0:00:35.3]} 74... Ra1 {[%clk 0:00:13]} 75. Kh3 {[%clk 0:00:35.1]}
75... Rh1+ {[%clk 0:00:13.8]} 76. Kg4 {[%clk 0:00:36.7]} 76... Ra1 {[%clk
0:00:15.3]} 77. Kf3 {[%clk 0:00:31.5]} 77... Rf1+ {[%clk 0:00:14.4]} 78. Ke4
{[%clk 0:00:32.6]} 78... Re1+ {[%clk 0:00:13.7]} 79. Kf5 {[%clk 0:00:33.6]}
79... Ra1 {[%clk 0:00:15.6]} 80. Rg6+ {[%clk 0:00:34.4]} 80... Kh7 {[%clk
0:00:17.2]} 81. Re6 {[%clk 0:00:34.3]} 81... Rg1 {[%clk 0:00:14]} 82. h5 {[%clk
0:00:34.9]} 82... Rg3 {[%clk 0:00:13.6]} 83. Rg6 {[%clk 0:00:29.6]} 83... Ra3
{[%clk 0:00:14.3]} 84. Re6 {[%clk 0:00:29.4]} 84... Rg3 {[%clk 0:00:15]} 85. Nd5
{[%clk 0:00:27.5]} 85... Rg1 {[%clk 0:00:12.4]} 86. Nf6+ {[%clk 0:00:27.4]}
86... Kg7 {[%clk 0:00:13.7]} 87. Ng4 {[%clk 0:00:27.2]} 87... Ra1 {[%clk
0:00:07.6]} 88. Re7+ {[%clk 0:00:26]} 88... Kf8 {[%clk 0:00:08.9]} 89. Rb7
{[%clk 0:00:23.8]} 89... Rg1 {[%clk 0:00:04.4]} 90. h6 {[%clk 0:00:22.8]} 90...
Kg8 {[%clk 0:00:02.1]} 91. Nf6+ {[%clk 0:00:17.8]} 91... Kf8 {[%clk 0:00:02.9]}
92. Ne4 {[%clk 0:00:11.9]} 92... Rf1+ {[%clk 0:00:04.8]} 93. Ke6 {[%clk
0:00:13.2]} 93... Kg8 {[%clk 0:00:04.6]} 94. Nf6+ {[%clk 0:00:14.4]} 94... Kf8
{[%clk 0:00:06]} 95. Rb8# {[%clk 0:00:16.2]} 1-0

[Event "*** MasterClass Titled Tuesday Blitz"]
[Site "Chess.com"]
[Date "2017.08.01"]
[Round "4"]
[White "abubakrtagelsir"]
[Black "Cryptochess"]
[Result "1/2-1/2"]
[WhiteElo "2303"]
[BlackElo "2457"]
[TimeControl "180+2"]
[EndTime "13:44:53 PDT"]
[Termination "Game drawn by agreement"]

1. e4 {[%clk 0:02:59.4]} 1... d6 {[%clk 0:03:00.9]} 2. d4 {[%clk 0:02:59.6]}
2... Nf6 {[%clk 0:03:02.3]} 3. Nc3 {[%clk 0:03:00.1]} 3... g6 {[%clk 0:03:03.7]}
4. f4 {[%clk 0:03:00.7]} 4... Bg7 {[%clk 0:03:04.1]} 5. Nf3 {[%clk 0:03:01.8]}
5... c5 {[%clk 0:03:05.5]} 6. Bb5+ {[%clk 0:02:59.4]} 6... Bd7 {[%clk
0:03:05.7]} 7. e5 {[%clk 0:03:00.1]} 7... Ng4 {[%clk 0:03:05.9]} 8. e6 {[%clk
0:03:00.4]} 8... fxe6 {[%clk 0:03:07.2]} 9. Ng5 {[%clk 0:02:47.5]} 9... Bxb5
{[%clk 0:03:06.1]} 10. Nxe6 {[%clk 0:02:38.9]} 10... Bxd4 {[%clk 0:03:06.7]} 11.
Nxd8 {[%clk 0:02:38.7]} 11... Bf2+ {[%clk 0:03:06.9]} 12. Kd2 {[%clk 0:02:39.3]}
1/2-1/2

[Event "*** MasterClass Titled Tuesday Blitz"]
[Site "Chess.com"]
[Date "2017.08.01"]
[Round "4"]
[White "Quiet_Desperation"]
[Black "Jahonas"]
[Result "0-1"]
[WhiteElo "2097"]
[BlackElo "2196"]
[TimeControl "180+2"]
[EndTime "13:47:36 PDT"]
[Termination "Jahonas won by resignation"]

1. e4 {[%clk 0:03:01.9]} 1... c6 {[%clk 0:02:58.9]} 2. Nc3 {[%clk 0:03:02]} 2...
d5 {[%clk 0:03:00.2]} 3. Nf3 {[%clk 0:03:03.4]} 3... dxe4 {[%clk 0:03:00.7]} 4.
Nxe4 {[%clk 0:03:04.8]} 4... Nf6 {[%clk 0:03:01.4]} 5. Nxf6+ {[%clk 0:03:05.7]}
5... exf6 {[%clk 0:03:02.1]} 6. d4 {[%clk 0:03:07.4]} 6... Bd6 {[%clk
0:03:02.9]} 7. Bd3 {[%clk 0:03:09]} 7... O-O {[%clk 0:03:04.1]} 8. Be3 {[%clk
0:03:10.3]} 8... Bg4 {[%clk 0:03:05.2]} 9. c3 {[%clk 0:03:11.7]} 9... Qc7 {[%clk
0:03:06]} 10. Qc2 {[%clk 0:03:12.6]} 10... h6 {[%clk 0:03:04]} 11. h3 {[%clk
0:03:10]} 11... Bxf3 {[%clk 0:03:05.2]} 12. gxf3 {[%clk 0:03:11.1]} 12... Bf4
{[%clk 0:03:06.4]} 13. O-O-O {[%clk 0:03:12]} 13... Nd7 {[%clk 0:03:03.1]} 14.
Kb1 {[%clk 0:03:11.8]} 14... Rfe8 {[%clk 0:03:02.2]} 15. Rde1 {[%clk 0:03:09.8]}
15... Nf8 {[%clk 0:02:59.4]} 16. Rhg1 {[%clk 0:03:09.9]} 16... g5 {[%clk
0:02:56.1]} 17. h4 {[%clk 0:03:07.2]} 17... Kg7 {[%clk 0:02:53.4]} 18. hxg5
{[%clk 0:03:08.4]} 18... hxg5 {[%clk 0:02:51]} 19. Rh1 {[%clk 0:03:04.9]} 19...
Ng6 {[%clk 0:02:51.5]} 20. Be4 {[%clk 0:02:55.8]} 20... Rh8 {[%clk 0:02:51]} 21.
Qb3 {[%clk 0:02:41.3]} 21... Rh4 {[%clk 0:02:34.3]} 22. Rxh4 {[%clk 0:02:21.4]}
22... Nxh4 {[%clk 0:02:31.5]} 23. Bxf4 {[%clk 0:02:14.4]} 23... Qxf4 {[%clk
0:02:27.5]} 24. Qxb7 {[%clk 0:02:12.4]} 24... Rb8 {[%clk 0:02:26.7]} 25. Qa6
{[%clk 0:01:59.7]} 25... Qd2 {[%clk 0:02:22.1]} 26. Re2 {[%clk 0:01:40.1]} 26...
Rxb2+ {[%clk 0:02:21.8]} 27. Ka1 {[%clk 0:01:40.9]} 27... Qc1+ {[%clk
0:02:20.5]} 0-1

[Event "*** MasterClass Titled Tuesday Blitz"]
[Site "Chess.com"]
[Date "2017.08.01"]
[Round "4"]
[White "dmjjmd"]
[Black "GasconJR"]
[Result "0-1"]
[WhiteElo "2152"]
[BlackElo "2346"]
[TimeControl "180+2"]
[EndTime "13:47:55 PDT"]
[Termination "GasconJR won by resignation"]

1. e4 {[%clk 0:03:00.7]} 1... c5 {[%clk 0:02:59.8]} 2. Nf3 {[%clk 0:03:01.7]}
2... d6 {[%clk 0:03:01.1]} 3. d4 {[%clk 0:03:03.5]} 3... cxd4 {[%clk 0:03:02.6]}
4. Nxd4 {[%clk 0:03:05.4]} 4... Nf6 {[%clk 0:03:03.7]} 5. Nc3 {[%clk 0:03:06.9]}
5... a6 {[%clk 0:03:05.3]} 6. Bc4 {[%clk 0:03:08.4]} 6... e6 {[%clk 0:03:06.2]}
7. Bb3 {[%clk 0:03:09.3]} 7... Nbd7 {[%clk 0:03:07.1]} 8. f4 {[%clk 0:03:09.3]}
8... Nc5 {[%clk 0:03:08.1]} 9. e5 {[%clk 0:03:10.8]} 9... dxe5 {[%clk 0:03:09]}
10. fxe5 {[%clk 0:03:12.7]} 10... Nfd7 {[%clk 0:03:10.1]} 11. Bf4 {[%clk
0:03:12.8]} 11... g5 {[%clk 0:03:08]} 12. Bg3 {[%clk 0:01:51.4]} 12... h5 {[%clk
0:02:57.7]} 13. O-O {[%clk 0:01:35.4]} 13... h4 {[%clk 0:02:52.4]} 14. Qf3
{[%clk 0:00:51.3]} 14... Rh7 {[%clk 0:02:44.6]} 15. Rad1 {[%clk 0:00:38.4]}
15... hxg3 {[%clk 0:02:42.9]} 16. Nxe6 {[%clk 0:00:39.9]} 16... Nxe6 {[%clk
0:02:40.4]} 17. Bxe6 {[%clk 0:00:39.7]} 17... Qb6+ {[%clk 0:02:39.9]} 0-1

[Event "*** MasterClass Titled Tuesday Blitz"]
[Site "Chess.com"]
[Date "2017.08.01"]
[Round "4"]
[White "moventog"]
[Black "Astaneh"]
[Result "1-0"]
[WhiteElo "2354"]
[BlackElo "2398"]
[TimeControl "180+2"]
[EndTime "13:48:29 PDT"]
[Termination "moventog won by resignation"]

1. e4 {[%clk 0:03:01.9]} 1... e5 {[%clk 0:03:01]} 2. Nf3 {[%clk 0:03:03]} 2...
Nc6 {[%clk 0:03:02.6]} 3. Bb5 {[%clk 0:03:04.5]} 3... f5 {[%clk 0:03:00.8]} 4.
Nc3 {[%clk 0:03:03.1]} 4... fxe4 {[%clk 0:03:01.4]} 5. Nxe4 {[%clk 0:03:05]}
5... Nf6 {[%clk 0:03:02.9]} 6. Qe2 {[%clk 0:02:56.8]} 6... d5 {[%clk 0:03:01.2]}
7. Nxf6+ {[%clk 0:02:56.3]} 7... gxf6 {[%clk 0:03:03.1]} 8. d4 {[%clk
0:02:53.8]} 8... Bg7 {[%clk 0:03:03.1]} 9. dxe5 {[%clk 0:02:51.4]} 9... O-O
{[%clk 0:03:02.3]} 10. Bxc6 {[%clk 0:02:38.7]} 10... bxc6 {[%clk 0:03:02.2]} 11.
e6 {[%clk 0:02:36.8]} 11... Re8 {[%clk 0:02:47.3]} 12. O-O {[%clk 0:02:36.1]}
12... Bxe6 {[%clk 0:02:45.7]} 13. Nd4 {[%clk 0:02:32.3]} 13... Bd7 {[%clk
0:02:40.2]} 14. Qf3 {[%clk 0:02:32.3]} 14... Re4 {[%clk 0:01:53.8]} 15. Nf5
{[%clk 0:02:30.5]} 15... Re5 {[%clk 0:01:51.1]} 16. Nxg7 {[%clk 0:02:12.2]}
16... Kxg7 {[%clk 0:01:47.8]} 17. Be3 {[%clk 0:02:09.8]} 17... Qe8 {[%clk
0:01:42.5]} 18. Bd4 {[%clk 0:02:09.7]} 18... Rf5 {[%clk 0:01:43.4]} 19. Qg3+
{[%clk 0:02:09]} 19... Kh8 {[%clk 0:01:27.7]} 20. Rfe1 {[%clk 0:02:07.9]} 20...
Qg6 {[%clk 0:01:25.7]} 21. Qxc7 {[%clk 0:02:05.2]} 21... Rg8 {[%clk 0:01:21.8]}
22. g3 {[%clk 0:02:05.2]} 22... Qg7 {[%clk 0:01:05.3]} 23. Qd6 {[%clk
0:02:02.4]} 1-0

[Event "*** MasterClass Titled Tuesday Blitz"]
[Site "Chess.com"]
[Date "2017.08.01"]
[Round "4"]
[White "lukas_111111"]
[Black "MMSANCHEZ"]
[Result "1-0"]
[WhiteElo "2426"]
[BlackElo "2302"]
[TimeControl "180+2"]
[EndTime "13:49:32 PDT"]
[Termination "lukas_111111 won by checkmate"]

1. e4 {[%clk 0:03:01.9]} 1... e6 {[%clk 0:03:01]} 2. d4 {[%clk 0:03:02.2]} 2...
d5 {[%clk 0:03:02]} 3. Nc3 {[%clk 0:03:03.7]} 3... Bb4 {[%clk 0:02:56.4]} 4. e5
{[%clk 0:03:04.3]} 4... c5 {[%clk 0:02:57]} 5. a3 {[%clk 0:03:05.6]} 5... Bxc3+
{[%clk 0:02:58]} 6. bxc3 {[%clk 0:03:06.8]} 6... Qa5 {[%clk 0:02:59.5]} 7. Bd2
{[%clk 0:03:07.1]} 7... Qa4 {[%clk 0:03:00.2]} 8. Qb1 {[%clk 0:03:04.9]} 8... c4
{[%clk 0:03:00.5]} 9. Nh3 {[%clk 0:03:02.8]} 9... Nc6 {[%clk 0:02:58.9]} 10. Nf4
{[%clk 0:03:02.5]} 10... g6 {[%clk 0:02:50.7]} 11. h4 {[%clk 0:03:01.4]} 11...
Bd7 {[%clk 0:02:51.7]} 12. h5 {[%clk 0:02:57.6]} 12... g5 {[%clk 0:02:52.8]} 13.
Nh3 {[%clk 0:02:55.1]} 13... h6 {[%clk 0:02:53.9]} 14. f4 {[%clk 0:02:56]} 14...
g4 {[%clk 0:02:52.4]} 15. Nf2 {[%clk 0:02:55.8]} 15... g3 {[%clk 0:02:53.2]} 16.
Ng4 {[%clk 0:02:50.8]} 16... O-O-O {[%clk 0:02:51.9]} 17. Be2 {[%clk 0:02:40.4]}
17... Nge7 {[%clk 0:02:50.9]} 18. Ne3 {[%clk 0:02:41.1]} 18... Rdf8 {[%clk
0:02:45.3]} 19. O-O {[%clk 0:02:36.4]} 19... Qa5 {[%clk 0:02:42.3]} 20. Bg4
{[%clk 0:02:36.1]} 20... Qd8 {[%clk 0:02:37.7]} 21. Bh3 {[%clk 0:02:28.9]} 21...
f6 {[%clk 0:02:27.2]} 22. Ng4 {[%clk 0:01:58.7]} 22... fxe5 {[%clk 0:02:21.2]}
23. fxe5 {[%clk 0:01:59.4]} 23... Rxf1+ {[%clk 0:01:57.9]} 24. Qxf1 {[%clk
0:01:59.4]} 24... Nf5 {[%clk 0:01:59.4]} 25. Nf6 {[%clk 0:01:59.7]} 25... Rf8
{[%clk 0:01:43.3]} 26. Bxf5 {[%clk 0:01:55.7]} 26... exf5 {[%clk 0:01:44.4]} 27.
Bxh6 {[%clk 0:01:55.5]} 27... Rf7 {[%clk 0:01:44.4]} 28. Qf4 {[%clk 0:01:49.9]}
28... Qh8 {[%clk 0:01:34.6]} 29. Bg5 {[%clk 0:01:43.3]} 29... Nd8 {[%clk
0:01:35.4]} 30. Qxg3 {[%clk 0:01:34.1]} 30... Bc6 {[%clk 0:01:27.6]} 31. Qf3
{[%clk 0:01:29]} 31... Kb8 {[%clk 0:01:13.5]} 32. Qxf5 {[%clk 0:01:29.4]} 32...
Ka8 {[%clk 0:01:11.8]} 33. Qc8# {[%clk 0:01:29.1]} 1-0

[Event "*** MasterClass Titled Tuesday Blitz"]
[Site "Chess.com"]
[Date "2017.08.01"]
[Round "4"]
[White "Fins0905"]
[Black "Saitama_Hero"]
[Result "1-0"]
[WhiteElo "2401"]
[BlackElo "2212"]
[TimeControl "180+2"]
[EndTime "13:50:09 PDT"]
[Termination "Fins0905 won by resignation"]

1. d4 {[%clk 0:03:01.9]} 1... d6 {[%clk 0:03:01.9]} 2. Nf3 {[%clk 0:02:59.3]}
2... f5 {[%clk 0:03:01.8]} 3. g3 {[%clk 0:02:59.5]} 3... Nf6 {[%clk 0:03:03.7]}
4. Bg2 {[%clk 0:03:01.1]} 4... g6 {[%clk 0:03:05.1]} 5. O-O {[%clk 0:03:02.4]}
5... Bg7 {[%clk 0:03:07]} 6. b3 {[%clk 0:03:03.7]} 6... O-O {[%clk 0:03:08.9]}
7. Bb2 {[%clk 0:03:05.2]} 7... Ne4 {[%clk 0:03:04.8]} 8. Nfd2 {[%clk 0:03:01.9]}
8... d5 {[%clk 0:03:02.5]} 9. e3 {[%clk 0:03:01.3]} 9... c6 {[%clk 0:02:59.2]}
10. c4 {[%clk 0:03:01.7]} 10... e6 {[%clk 0:02:58.4]} 11. Nc3 {[%clk 0:02:59.5]}
11... Nd7 {[%clk 0:02:59.1]} 12. Ndxe4 {[%clk 0:02:52.1]} 12... fxe4 {[%clk
0:02:57.6]} 13. f3 {[%clk 0:02:53.1]} 13... exf3 {[%clk 0:02:57.5]} 14. Bxf3
{[%clk 0:02:50.8]} 14... Qg5 {[%clk 0:02:56.6]} 15. Qe2 {[%clk 0:02:48.6]} 15...
dxc4 {[%clk 0:02:54.4]} 16. Ne4 {[%clk 0:02:40]} 16... Qh6 {[%clk 0:02:51.5]}
17. bxc4 {[%clk 0:02:37.7]} 17... e5 {[%clk 0:02:51.2]} 18. c5 {[%clk
0:02:21.7]} 18... Kh8 {[%clk 0:02:24.2]} 19. Bg2 {[%clk 0:02:07.8]} 19... exd4
{[%clk 0:02:15]} 20. Rxf8+ {[%clk 0:01:49.6]} 20... Nxf8 {[%clk 0:02:16.9]} 21.
exd4 {[%clk 0:01:42.7]} 21... Be6 {[%clk 0:02:11.4]} 22. Rf1 {[%clk 0:01:36.4]}
22... Bxa2 {[%clk 0:01:29.4]} 23. Nd6 {[%clk 0:01:23.6]} 23... Nd7 {[%clk
0:00:58.6]} 24. d5 {[%clk 0:01:12.9]} 24... Nf6 {[%clk 0:00:11.4]} 25. Nf7+
{[%clk 0:01:11.7]} 1-0

[Event "*** MasterClass Titled Tuesday Blitz"]
[Site "Chess.com"]
[Date "2017.08.01"]
[Round "4"]
[White "kleinebeer98"]
[Black "ruvat"]
[Result "1-0"]
[WhiteElo "2458"]
[BlackElo "2290"]
[TimeControl "180+2"]
[EndTime "13:50:33 PDT"]
[Termination "kleinebeer98 won by resignation"]

1. e4 {[%clk 0:03:01.9]} 1... d6 {[%clk 0:02:59.6]} 2. d4 {[%clk 0:03:02.5]}
2... Nf6 {[%clk 0:03:00.7]} 3. Nc3 {[%clk 0:03:02.4]} 3... g6 {[%clk 0:03:01.9]}
4. h4 {[%clk 0:03:03.4]} 4... Bg7 {[%clk 0:03:00.4]} 5. h5 {[%clk 0:03:04.6]}
5... Nxh5 {[%clk 0:03:01.1]} 6. g4 {[%clk 0:03:05.4]} 6... Nf6 {[%clk
0:03:01.1]} 7. g5 {[%clk 0:03:06.7]} 7... Nfd7 {[%clk 0:03:01.7]} 8. f4 {[%clk
0:03:07.7]} 8... c5 {[%clk 0:02:48.8]} 9. d5 {[%clk 0:03:07.4]} 9... Na6 {[%clk
0:02:48.3]} 10. Nf3 {[%clk 0:02:57.8]} 10... Nc7 {[%clk 0:02:48.3]} 11. a4
{[%clk 0:02:56.2]} 11... a6 {[%clk 0:02:45.5]} 12. Qe2 {[%clk 0:02:42.9]} 12...
Rb8 {[%clk 0:02:44.7]} 13. e5 {[%clk 0:02:42]} 13... Nb6 {[%clk 0:02:11.8]} 14.
Qd2 {[%clk 0:02:12.4]} 14... dxe5 {[%clk 0:02:06]} 15. Nxe5 {[%clk 0:01:55.7]}
15... Nbxd5 {[%clk 0:01:59.1]} 16. Bc4 {[%clk 0:01:51]} 16... Be6 {[%clk
0:01:55.3]} 17. Ne4 {[%clk 0:01:38.6]} 17... b6 {[%clk 0:01:48.2]} 18. c3 {[%clk
0:01:30.4]} 18... Rb7 {[%clk 0:00:50.6]} 19. Qg2 {[%clk 0:01:11.6]} 19... Qc8
{[%clk 0:00:47.4]} 20. Bd2 {[%clk 0:01:00.7]} 20... Bxe5 {[%clk 0:00:38.9]} 21.
fxe5 {[%clk 0:01:01.6]} 21... Bf5 {[%clk 0:00:35.8]} 22. O-O-O {[%clk
0:00:55.8]} 22... Qe6 {[%clk 0:00:36.4]} 23. Rde1 {[%clk 0:00:45]} 23... Rb8
{[%clk 0:00:34.1]} 24. Nf6+ {[%clk 0:00:40.5]} 24... Kf8 {[%clk 0:00:30]} 25.
Nxd5 {[%clk 0:00:40.8]} 25... Nxd5 {[%clk 0:00:30.3]} 26. Bxd5 {[%clk
0:00:42.7]} 1-0

[Event "*** MasterClass Titled Tuesday Blitz"]
[Site "Chess.com"]
[Date "2017.08.01"]
[Round "4"]
[White "pedroholly22"]
[Black "Caisachess"]
[Result "1-0"]
[WhiteElo "2269"]
[BlackElo "2241"]
[TimeControl "180+2"]
[EndTime "13:50:38 PDT"]
[Termination "pedroholly22 won by checkmate"]

1. d4 {[%clk 0:03:01.9]} 1... Nf6 {[%clk 0:02:53.7]} 2. c4 {[%clk 0:02:57]} 2...
e6 {[%clk 0:02:54.2]} 3. Nf3 {[%clk 0:02:50.1]} 3... Bb4+ {[%clk 0:02:54.3]} 4.
Bd2 {[%clk 0:02:48.3]} 4... a5 {[%clk 0:02:54.5]} 5. g3 {[%clk 0:02:48.3]} 5...
b6 {[%clk 0:02:55.2]} 6. Bg2 {[%clk 0:02:49.2]} 6... Bb7 {[%clk 0:02:56.8]} 7.
O-O {[%clk 0:02:49.5]} 7... O-O {[%clk 0:02:58.2]} 8. Nc3 {[%clk 0:02:51]} 8...
d6 {[%clk 0:02:58]} 9. Bg5 {[%clk 0:02:44.3]} 9... Bxc3 {[%clk 0:02:55.2]} 10.
bxc3 {[%clk 0:02:45]} 10... h6 {[%clk 0:02:56.6]} 11. Bf4 {[%clk 0:02:40.6]}
11... Ne4 {[%clk 0:02:56.4]} 12. Qc2 {[%clk 0:02:41.1]} 12... Nd7 {[%clk
0:02:54.8]} 13. d5 {[%clk 0:02:41.1]} 13... exd5 {[%clk 0:02:52.5]} 14. cxd5
{[%clk 0:02:42]} 14... Bxd5 {[%clk 0:02:45.3]} 15. Rfd1 {[%clk 0:02:24.8]} 15...
Nef6 {[%clk 0:02:13.1]} 16. Bh3 {[%clk 0:02:15.7]} 16... Nc5 {[%clk 0:02:06.8]}
17. Nd4 {[%clk 0:02:03.2]} 17... Be4 {[%clk 0:02:05.8]} 18. Qd2 {[%clk
0:02:03.4]} 18... Nh5 {[%clk 0:01:49.8]} 19. Be3 {[%clk 0:01:55.8]} 19... Qf6
{[%clk 0:01:42.6]} 20. Bg4 {[%clk 0:01:51]} 20... Qg6 {[%clk 0:01:37.2]} 21. Bh3
{[%clk 0:01:47.9]} 21... Nf6 {[%clk 0:01:37.6]} 22. Nb5 {[%clk 0:01:47.8]} 22...
Nd5 {[%clk 0:01:25.1]} 23. Bxc5 {[%clk 0:01:48]} 23... dxc5 {[%clk 0:01:23.1]}
24. c4 {[%clk 0:01:48.7]} 24... Nb4 {[%clk 0:01:02.2]} 25. Nxc7 {[%clk
0:01:48.6]} 25... Rad8 {[%clk 0:01:03]} 26. Qxd8 {[%clk 0:01:48]} 26... Rxd8
{[%clk 0:01:03.5]} 27. Rxd8+ {[%clk 0:01:49.9]} 27... Kh7 {[%clk 0:01:05.2]} 28.
Ne8 {[%clk 0:01:42.5]} 28... Qh5 {[%clk 0:01:00.4]} 29. Nd6 {[%clk 0:01:30.5]}
29... Bc2 {[%clk 0:00:44]} 30. Bg2 {[%clk 0:01:25.8]} 30... Nc6 {[%clk
0:00:41.9]} 31. Bxc6 {[%clk 0:01:25.1]} 31... Qxe2 {[%clk 0:00:39.6]} 32. Nxf7
{[%clk 0:01:20.8]} 32... Qe7 {[%clk 0:00:39.8]} 33. Bd5 {[%clk 0:01:15.9]} 33...
Bg6 {[%clk 0:00:40.5]} 34. Rh8# {[%clk 0:01:14.8]} 1-0